[Event "TePe Sigeman & Co Chess Tournament 2024"]
[Site "Elite Plaza Hotel, Gustav Adolfs Torg 49, Malmo, Sweden"]
[Date "2024.05.01"]
[Round "5.1"]
[White "Erigaisi, Arjun"]
[Black "Keymer, Vincent"]
[Result "1/2-1/2"]
[TimeControl "90 minutes for 40 moves + 30 minutes for the rest of the game + 30 seconds per move from move one."]
[WhiteTitle "GM"]
[BlackTitle "GM"]
[WhiteFideId "35009192"]
[BlackFideId "12940690"]
[WhiteElo "2756"]
[BlackElo "2726"]

1. e4 {[%clk 01:30:53]} {[%emt 00:00:04]} e5 {[%clk 01:30:57]} {[%emt
00:00:05]} 2. Nf3 {[%clk 01:31:18]} {[%emt 00:00:05]} Nc6 {[%clk 01:31:25]}
{[%emt 00:00:03]} 3. Bb5 {[%clk 01:31:41]} {[%emt 00:00:06]} a6 {[%clk
01:31:51]} {[%emt 00:00:04]} 4. Ba4 {[%clk 01:32:07]} {[%emt 00:00:04]} Nf6
{[%clk 01:32:18]} {[%emt 00:00:03]} 5. O-O {[%clk 01:32:30]} {[%emt 00:00:06]}
Be7 {[%clk 01:32:45]} {[%emt 00:00:04]} 6. Re1 {[%clk 01:32:54]} {[%emt
00:00:06]} b5 {[%clk 01:33:12]} {[%emt 00:00:03]} 7. Bb3 {[%clk 01:33:19]}
{[%emt 00:00:05]} O-O {[%clk 01:33:38]} {[%emt 00:00:04]} 8. h3 {[%clk
01:33:44]} {[%emt 00:00:05]} Bb7 {[%clk 01:34:04]} {[%emt 00:00:04]} 9. d3
{[%clk 01:34:08]} {[%emt 00:00:06]} d5 {[%clk 01:34:21]} {[%emt 00:00:14]} 10.
exd5 {[%clk 01:34:31]} {[%emt 00:00:07]} Nxd5 {[%clk 01:34:47]} {[%emt
00:00:04]} 11. Nbd2 {[%clk 01:34:55]} {[%emt 00:00:06]} Nd4 {[%clk 01:34:15]}
{[%emt 00:01:02]} 12. Nxd4 {[%clk 01:35:03]} {[%emt 00:00:22]} exd4 {[%clk
01:34:43]} {[%emt 00:00:02]} 13. Qf3 {[%clk 01:35:26]} {[%emt 00:00:06]} Ra7
{[%clk 01:35:06]} {[%emt 00:00:08]} 14. Qf5 {[%clk 01:33:29]} {[%emt 00:02:27]}
g6 {[%clk 01:35:31]} {[%emt 00:00:05]} 15. Qe5 {[%clk 01:30:30]} {[%emt
00:03:28]} Bf6 {[%clk 01:35:56]} {[%emt 00:00:05]} 16. Qg3 {[%clk 01:30:54]}
{[%emt 00:00:05]} Ne3 {[%clk 01:35:36]} {[%emt 00:00:51]} 17. Ne4 {[%clk
01:30:37]} {[%emt 00:00:47]} Bxe4 {[%clk 01:35:49]} {[%emt 00:00:18]} 18. dxe4
{[%clk 01:27:32]} {[%emt 00:03:35]} c5 {[%clk 01:36:05]} {[%emt 00:00:13]} 19.
c3 {[%clk 01:24:28]} {[%emt 00:03:34]} Nc4 {[%clk 01:36:19]} {[%emt 00:00:16]}
20. a4 {[%clk 00:59:37]} {[%emt 00:25:21]} Rd7 {[%clk 01:10:27]} {[%emt
00:26:22]} 21. axb5 {[%clk 00:59:21]} {[%emt 00:00:46]} axb5 {[%clk 01:10:48]}
{[%emt 00:00:09]} 22. cxd4 {[%clk 00:58:30]} {[%emt 00:01:21]} Rxd4 {[%clk
01:01:26]} {[%emt 00:09:52]} 23. Bxc4 {[%clk 00:57:30]} {[%emt 00:01:29]} Rxc4
{[%clk 00:58:03]} {[%emt 00:03:54]} 24. e5 {[%clk 00:52:26]} {[%emt 00:05:34]}
Re8 {[%clk 00:53:50]} {[%emt 00:04:43]} 25. Bh6 {[%clk 00:49:16]} {[%emt
00:03:39]} Bg7 {[%clk 00:38:17]} {[%emt 00:16:04]} 26. Bxg7 {[%clk 00:48:48]}
{[%emt 00:00:58]} Kxg7 {[%clk 00:37:29]} {[%emt 00:01:18]} 27. b3 {[%clk
00:28:54]} {[%emt 00:20:24]} Rd4 {[%clk 00:32:47]} {[%emt 00:05:13]} 28. e6
{[%clk 00:26:21]} {[%emt 00:03:03]} Qd6 {[%clk 00:29:46]} {[%emt 00:03:31]} 29.
Qxd6 {[%clk 00:26:04]} {[%emt 00:00:47]} Rxd6 {[%clk 00:30:11]} {[%emt
00:00:05]} 30. Re5 {[%clk 00:26:10]} {[%emt 00:00:24]} Rdxe6 {[%clk 00:29:26]}
{[%emt 00:01:16]} 31. Rxc5 {[%clk 00:26:33]} {[%emt 00:00:06]} Re5 {[%clk
00:29:54]} {[%emt 00:00:02]} 32. Rac1 {[%clk 00:25:59]} {[%emt 00:01:03]} Kf6
{[%clk 00:29:40]} {[%emt 00:00:44]} 33. Kf1 {[%clk 00:26:23]} {[%emt 00:00:06]}
h5 {[%clk 00:29:38]} {[%emt 00:00:32]} 34. Rxe5 {[%clk 00:26:41]} {[%emt
00:00:12]} Rxe5 {[%clk 00:30:04]} {[%emt 00:00:05]} 35. Rc6+ {[%clk 00:27:06]}
{[%emt 00:00:04]} Re6 {[%clk 00:30:20]} {[%emt 00:00:15]} 36. Rc5 {[%clk
00:27:30]} {[%emt 00:00:05]} Re5 {[%clk 00:30:46]} {[%emt 00:00:04]} 37. Rc6+
{[%clk 00:27:56]} {[%emt 00:00:04]} Re6 {[%clk 00:31:14]} {[%emt 00:00:03]} 38.
Rc5 {[%clk 00:28:20]} {[%emt 00:00:05]} Re5 {[%clk 00:31:41]} {[%emt 00:00:03]}
39. Rc6+ {[%clk 00:28:46]} {[%emt 00:00:04]} Re6 {[%clk 00:32:07]} {[%emt
00:00:04]} 1/2-1/2

[ePGN "0.1;DGT LiveChess/2.2.6"]

[Event "TePe Sigeman & Co Chess Tournament 2024"]
[Site "Elite Plaza Hotel, Gustav Adolfs Torg 49, Malmo, Sweden"]
[Date "2024.05.01"]
[Round "5.2"]
[White "Svidler, Peter"]
[Black "Korobov, Anton"]
[Result "1-0"]
[TimeControl "90 minutes for 40 moves + 30 minutes for the rest of the game + 30 seconds per move from move one."]
[WhiteTitle "GM"]
[BlackTitle "GM"]
[WhiteFideId "4102142"]
[BlackFideId "14105730"]
[WhiteElo "2689"]
[BlackElo "2651"]

1. e4 {[%clk 01:30:53]} {[%emt 00:00:06]} c5 {[%clk 01:30:54]} {[%emt
00:00:06]} 2. Nf3 {[%clk 01:31:18]} {[%emt 00:00:05]} d6 {[%clk 01:31:18]}
{[%emt 00:00:06]} 3. Nc3 {[%clk 01:31:39]} {[%emt 00:00:10]} Nf6 {[%clk
01:31:23]} {[%emt 00:00:25]} 4. d4 {[%clk 01:32:02]} {[%emt 00:00:06]} cxd4
{[%clk 01:31:43]} {[%emt 00:00:10]} 5. Qxd4 {[%clk 01:32:28]} {[%emt 00:00:05]}
Nc6 {[%clk 01:30:39]} {[%emt 00:01:33]} 6. Qe3 {[%clk 01:32:17]} {[%emt
00:00:41]} e6 {[%clk 01:28:14]} {[%emt 00:02:55]} 7. b3 {[%clk 01:32:04]}
{[%emt 00:00:43]} Be7 {[%clk 01:26:47]} {[%emt 00:01:57]} 8. Bb2 {[%clk
01:31:50]} {[%emt 00:00:44]} a6 {[%clk 01:23:39]} {[%emt 00:03:38]} 9. O-O-O
{[%clk 01:28:51]} {[%emt 00:03:29]} Qc7 {[%clk 01:21:45]} {[%emt 00:02:25]} 10.
h3 {[%clk 01:15:57]} {[%emt 00:13:24]} b5 {[%clk 01:19:23]} {[%emt 00:02:51]}
11. g4 {[%clk 01:15:11]} {[%emt 00:01:16]} Bb7 {[%clk 01:18:40]} {[%emt
00:01:13]} 12. g5 {[%clk 01:09:34]} {[%emt 00:06:07]} Nd7 {[%clk 01:16:42]}
{[%emt 00:02:28]} 13. Kb1 {[%clk 01:08:22]} {[%emt 00:01:42]} Nc5 {[%clk
01:12:10]} {[%emt 00:05:00]} 14. Rg1 {[%clk 00:59:03]} {[%emt 00:09:51]} O-O-O
{[%clk 01:04:09]} {[%emt 00:08:31]} 15. Nd4 {[%clk 00:53:57]} {[%emt 00:05:36]}
b4 {[%clk 00:51:38]} {[%emt 00:13:01]} 16. Nce2 {[%clk 00:52:59]} {[%emt
00:01:27]} Na7 {[%clk 00:43:41]} {[%emt 00:08:28]} 17. Ng3 {[%clk 00:49:31]}
{[%emt 00:03:58]} Kb8 {[%clk 00:36:06]} {[%emt 00:08:05]} 18. f4 {[%clk
00:46:22]} {[%emt 00:03:39]} Rhe8 {[%clk 00:27:32]} {[%emt 00:09:04]} 19. Rg2
{[%clk 00:42:06]} {[%emt 00:04:46]} e5 {[%clk 00:25:15]} {[%emt 00:02:48]} 20.
Ndf5 {[%clk 00:30:42]} {[%emt 00:11:54]} Bf8 {[%clk 00:24:29]} {[%emt
00:01:16]} 21. fxe5 {[%clk 00:25:35]} {[%emt 00:05:37]} dxe5 {[%clk 00:24:32]}
{[%emt 00:00:26]} 22. Rgd2 {[%clk 00:26:03]} {[%emt 00:00:02]} Rxd2 {[%clk
00:23:54]} {[%emt 00:01:09]} 23. Rxd2 {[%clk 00:26:22]} {[%emt 00:00:12]} Nb5
{[%clk 00:17:18]} {[%emt 00:07:05]} 24. Bxb5 {[%clk 00:25:11]} {[%emt
00:01:41]} axb5 {[%clk 00:17:46]} {[%emt 00:00:02]} 25. Qe2 {[%clk 00:25:28]}
{[%emt 00:00:13]} f6 {[%clk 00:06:22]} {[%emt 00:11:55]} 26. Ne3 {[%clk
00:20:13]} {[%emt 00:05:45]} Rd8 {[%clk 00:04:49]} {[%emt 00:02:03]} 27. Nd5
{[%clk 00:12:52]} {[%emt 00:07:51]} Qd7 {[%clk 00:04:23]} {[%emt 00:00:56]} 28.
Qf1 {[%clk 00:12:36]} {[%emt 00:00:46]} Qe6 {[%clk 00:03:03]} {[%emt 00:01:50]}
29. gxf6 {[%clk 00:11:48]} {[%emt 00:01:19]} Nxe4 {[%clk 00:02:00]} {[%emt
00:01:32]} 30. Nxe4 {[%clk 00:12:02]} {[%emt 00:00:16]} Rxd5 {[%clk 00:02:28]}
{[%emt 00:00:02]} 31. Ng5 {[%clk 00:07:15]} {[%emt 00:05:17]} Qxf6 {[%clk
00:02:55]} {[%emt 00:00:03]} 32. Rf2 {[%clk 00:07:37]} {[%emt 00:00:08]} Rd1+
{[%clk 00:03:20]} {[%emt 00:00:04]} 33. Qxd1 {[%clk 00:08:03]} {[%emt
00:00:04]} Qxf2 {[%clk 00:03:47]} {[%emt 00:00:04]} 34. Qd8+ {[%clk 00:04:01]}
{[%emt 00:04:32]} Ka7 {[%clk 00:04:05]} {[%emt 00:00:12]} 35. Ne6 {[%clk
00:01:45]} {[%emt 00:02:47]} Qg1+ {[%clk 00:03:57]} {[%emt 00:00:38]} 36. Bc1
{[%clk 00:02:11]} {[%emt 00:00:05]} 1-0

[ePGN "0.1;DGT LiveChess/2.2.6"]

[Event "TePe Sigeman & Co Chess Tournament 2024"]
[Site "Elite Plaza Hotel, Gustav Adolfs Torg 49, Malmo, Sweden"]
[Date "2024.05.01"]
[Round "5.3"]
[White "Grandelius, Nils"]
[Black "Maurizzi, Marc'Andria"]
[Result "1/2-1/2"]
[TimeControl "90 minutes for 40 moves + 30 minutes for the rest of the game + 30 seconds per move from move one."]
[WhiteTitle "GM"]
[BlackTitle "GM"]
[WhiteFideId "1710400"]
[BlackFideId "36083534"]
[WhiteElo "2664"]
[BlackElo "2605"]

1. e4 {[%clk 01:30:39]} {[%emt 00:00:20]} e5 {[%clk 01:30:42]} {[%emt
00:00:20]} 2. Nf3 {[%clk 01:30:45]} {[%emt 00:00:23]} Nc6 {[%clk 01:30:32]}
{[%emt 00:00:41]} 3. Bb5 {[%clk 01:30:47]} {[%emt 00:00:26]} a6 {[%clk
01:30:25]} {[%emt 00:00:36]} 4. Ba4 {[%clk 01:30:54]} {[%emt 00:00:25]} Nf6
{[%clk 01:30:51]} {[%emt 00:00:04]} 5. d3 {[%clk 01:31:08]} {[%emt 00:00:16]}
Bc5 {[%clk 01:29:14]} {[%emt 00:02:07]} 6. O-O {[%clk 01:30:53]} {[%emt
00:00:44]} d6 {[%clk 01:29:31]} {[%emt 00:00:14]} 7. c3 {[%clk 01:29:47]}
{[%emt 00:01:36]} O-O {[%clk 01:29:13]} {[%emt 00:00:48]} 8. h3 {[%clk
01:22:57]} {[%emt 00:07:21]} Ba7 {[%clk 01:29:17]} {[%emt 00:00:26]} 9. Re1
{[%clk 01:22:38]} {[%emt 00:00:48]} Nh5 {[%clk 01:29:39]} {[%emt 00:00:09]} 10.
d4 {[%clk 01:11:08]} {[%emt 00:12:01]} Qf6 {[%clk 01:29:32]} {[%emt 00:00:38]}
11. Nbd2 {[%clk 00:50:51]} {[%emt 00:20:47]} b5 {[%clk 01:29:34]} {[%emt
00:00:28]} 12. Bc2 {[%clk 00:48:54]} {[%emt 00:02:27]} Nf4 {[%clk 01:21:04]}
{[%emt 00:09:00]} 13. Nf1 {[%clk 00:47:46]} {[%emt 00:01:38]} g5 {[%clk
01:21:12]} {[%emt 00:00:22]} 14. Ne3 {[%clk 00:41:21]} {[%emt 00:06:54]} Kh8
{[%clk 01:21:07]} {[%emt 00:00:35]} 15. Nf5 {[%clk 00:35:37]} {[%emt 00:06:14]}
Bxf5 {[%clk 01:21:15]} {[%emt 00:00:23]} 16. exf5 {[%clk 00:36:04]} {[%emt
00:00:02]} exd4 {[%clk 01:20:38]} {[%emt 00:01:07]} 17. h4 {[%clk 00:31:56]}
{[%emt 00:04:38]} d3 {[%clk 01:20:51]} {[%emt 00:00:17]} 18. Bxd3 {[%clk
00:30:45]} {[%emt 00:01:41]} Nxd3 {[%clk 01:21:08]} {[%emt 00:00:13]} 19. Qxd3
{[%clk 00:31:04]} {[%emt 00:00:10]} g4 {[%clk 01:21:12]} {[%emt 00:00:26]} 20.
Bg5 {[%clk 00:26:53]} {[%emt 00:04:41]} Qg7 {[%clk 01:20:42]} {[%emt 00:01:00]}
21. f6 {[%clk 00:15:39]} {[%emt 00:11:44]} Qg6 {[%clk 01:09:07]} {[%emt
00:12:04]} 22. Qd5 {[%clk 00:15:59]} {[%emt 00:00:10]} gxf3 {[%clk 00:51:01]}
{[%emt 00:18:37]} 23. Qxc6 {[%clk 00:16:26]} {[%emt 00:00:02]} h6 {[%clk
00:50:52]} {[%emt 00:00:39]} 24. Qxf3 {[%clk 00:16:39]} {[%emt 00:00:16]} hxg5
{[%clk 00:50:09]} {[%emt 00:01:14]} 25. hxg5 {[%clk 00:17:07]} {[%emt
00:00:02]} Rae8 {[%clk 00:46:59]} {[%emt 00:03:39]} 26. g3 {[%clk 00:06:39]}
{[%emt 00:10:58]} Kg8 {[%clk 00:34:54]} {[%emt 00:12:36]} 27. Kg2 {[%clk
00:06:29]} {[%emt 00:00:40]} Qc2 {[%clk 00:25:44]} {[%emt 00:09:40]} 28. Re7
{[%clk 00:02:43]} {[%emt 00:04:16]} Rxe7 {[%clk 00:12:52]} {[%emt 00:13:22]} 29.
fxe7 {[%clk 00:03:12]} {[%emt 00:00:02]} Re8 {[%clk 00:13:18]} {[%emt
00:00:04]} 30. Re1 {[%clk 00:03:24]} {[%emt 00:00:18]} Qd2 {[%clk 00:12:08]}
{[%emt 00:01:40]} 31. Re2 {[%clk 00:00:37]} {[%emt 00:03:17]} Qxg5 {[%clk
00:12:07]} {[%emt 00:00:31]} 32. Qc6 {[%clk 00:00:41]} {[%emt 00:00:25]} Rxe7
{[%clk 00:12:32]} {[%emt 00:00:05]} 33. Qa8+ {[%clk 00:00:44]} {[%emt
00:00:27]} Kg7 {[%clk 00:12:58]} {[%emt 00:00:04]} 34. Rxe7 {[%clk 00:01:09]}
{[%emt 00:00:06]} Qxe7 {[%clk 00:12:53]} {[%emt 00:00:34]} 35. Qxa7 {[%clk
00:01:37]} {[%emt 00:00:02]} Qe4+ {[%clk 00:13:19]} {[%emt 00:00:04]} 36. Kh2
{[%clk 00:01:40]} {[%emt 00:00:27]} Qh7+ {[%clk 00:13:34]} {[%emt 00:00:15]} 37.
Kg2 {[%clk 00:02:05]} {[%emt 00:00:05]} Qe4+ {[%clk 00:14:01]} {[%emt
00:00:03]} 38. Kh2 {[%clk 00:02:33]} {[%emt 00:00:02]} Qh7+ {[%clk 00:14:28]}
{[%emt 00:00:03]} 39. Kg2 {[%clk 00:03:01]} {[%emt 00:00:02]} Qe4+ {[%emt
00:00:04]} 1/2-1/2

[ePGN "0.1;DGT LiveChess/2.2.6"]

[Event "TePe Sigeman & Co Chess Tournament 2024"]
[Site "Elite Plaza Hotel, Gustav Adolfs Torg 49, Malmo, Sweden"]
[Date "2024.05.01"]
[Round "5.4"]
[White "Ju, Wenjun"]
[Black "Abdusattorov, Nodirbek"]
[Result "1/2-1/2"]
[TimeControl "90 minutes for 40 moves + 30 minutes for the rest of the game + 30 seconds per move from move one."]
[WhiteTitle "GM"]
[BlackTitle "GM"]
[WhiteFideId "8603006"]
[BlackFideId "14204118"]
[WhiteElo "2559"]
[BlackElo "2765"]

1. e4 {[%clk 01:30:58]} {[%emt 00:00:02]} c5 {[%clk 01:30:45]} {[%emt
00:00:15]} 2. c3 {[%clk 01:31:23]} {[%emt 00:00:05]} Nf6 {[%clk 01:26:56]}
{[%emt 00:04:19]} 3. e5 {[%clk 01:31:26]} {[%emt 00:00:27]} Nd5 {[%clk
01:27:12]} {[%emt 00:00:13]} 4. Nf3 {[%clk 01:30:51]} {[%emt 00:01:06]} e6
{[%clk 01:27:33]} {[%emt 00:00:09]} 5. d4 {[%clk 01:31:05]} {[%emt 00:00:15]}
cxd4 {[%clk 01:27:22]} {[%emt 00:00:40]} 6. cxd4 {[%clk 01:31:33]} {[%emt
00:00:03]} d6 {[%clk 01:27:14]} {[%emt 00:00:37]} 7. Bc4 {[%clk 01:31:22]}
{[%emt 00:00:41]} Be7 {[%clk 01:26:43]} {[%emt 00:01:01]} 8. O-O {[%clk
01:31:47]} {[%emt 00:00:05]} O-O {[%clk 01:27:06]} {[%emt 00:00:07]} 9. Re1
{[%clk 01:31:59]} {[%emt 00:00:18]} Nc6 {[%clk 01:23:02]} {[%emt 00:04:34]} 10.
Qe2 {[%clk 01:27:09]} {[%emt 00:05:20]} Bd7 {[%clk 01:15:43]} {[%emt 00:07:48]}
11. exd6 {[%clk 01:19:06]} {[%emt 00:08:34]} Bxd6 {[%clk 01:14:50]} {[%emt
00:01:23]} 12. Nc3 {[%clk 01:19:28]} {[%emt 00:00:09]} Nce7 {[%clk 01:13:49]}
{[%emt 00:01:31]} 13. Bg5 {[%clk 01:15:39]} {[%emt 00:04:20]} f6 {[%clk
01:00:45]} {[%emt 00:13:34]} 14. Bd2 {[%clk 01:07:14]} {[%emt 00:08:55]} Kh8
{[%clk 00:57:10]} {[%emt 00:04:05]} 15. Ne4 {[%clk 01:03:11]} {[%emt 00:04:34]}
Qb6 {[%clk 00:51:57]} {[%emt 00:05:42]} 16. b4 {[%clk 00:59:35]} {[%emt
00:04:07]} Ng6 {[%clk 00:51:53]} {[%emt 00:00:34]} 17. g3 {[%clk 00:54:51]}
{[%emt 00:05:15]} Rae8 {[%clk 00:48:15]} {[%emt 00:04:07]} 18. h4 {[%clk
00:51:49]} {[%emt 00:03:31]} Nge7 {[%clk 00:47:42]} {[%emt 00:01:02]} 19. Nc5
{[%clk 00:41:00]} {[%emt 00:11:21]} Bxc5 {[%clk 00:47:25]} {[%emt 00:00:46]} 20.
dxc5 {[%clk 00:41:27]} {[%emt 00:00:03]} Qc7 {[%clk 00:47:48]} {[%emt
00:00:06]} 21. Qe4 {[%clk 00:40:34]} {[%emt 00:01:24]} Rd8 {[%clk 00:40:04]}
{[%emt 00:08:14]} 22. Bd3 {[%clk 00:29:53]} {[%emt 00:11:11]} g6 {[%clk
00:40:01]} {[%emt 00:00:32]} 23. h5 {[%clk 00:30:15]} {[%emt 00:00:09]} e5
{[%clk 00:35:48]} {[%emt 00:04:43]} 24. hxg6 {[%clk 00:18:52]} {[%emt
00:11:53]} Bf5 {[%clk 00:28:15]} {[%emt 00:08:03]} 25. Qc4 {[%clk 00:19:21]}
{[%emt 00:00:02]} Bxd3 {[%clk 00:28:32]} {[%emt 00:00:13]} 26. Qxd3 {[%clk
00:19:47]} {[%emt 00:00:04]} hxg6 {[%clk 00:28:32]} {[%emt 00:00:30]} 27. Qe4
{[%clk 00:18:36]} {[%emt 00:01:41]} Kg7 {[%clk 00:28:31]} {[%emt 00:00:31]} 28.
Kg2 {[%clk 00:09:45]} {[%emt 00:09:21]} Rh8 {[%clk 00:28:47]} {[%emt 00:00:14]}
29. Rh1 {[%clk 00:09:47]} {[%emt 00:00:28]} Qc6 {[%clk 00:28:35]} {[%emt
00:00:42]} 30. Rae1 {[%clk 00:10:04]} {[%emt 00:00:13]} Rxh1 {[%clk 00:19:45]}
{[%emt 00:09:20]} 31. Kxh1 {[%clk 00:10:31]} {[%emt 00:00:03]} Rh8+ {[%clk
00:18:29]} {[%emt 00:01:46]} 32. Kg2 {[%clk 00:10:31]} {[%emt 00:00:30]} Kf7
{[%clk 00:15:19]} {[%emt 00:03:40]} 33. Qg4 {[%clk 00:08:38]} {[%emt 00:02:23]}
Kg7 {[%clk 00:13:12]} {[%emt 00:02:37]} 34. Qe4 {[%clk 00:06:25]} {[%emt
00:02:43]} a6 {[%clk 00:11:24]} {[%emt 00:02:19]} 35. a3 {[%clk 00:06:48]}
{[%emt 00:00:07]} Kf7 {[%clk 00:09:32]} {[%emt 00:02:21]} 36. Qg4 {[%clk
00:07:14]} {[%emt 00:00:04]} Nc7 {[%clk 00:09:22]} {[%emt 00:00:40]} 37. Qc4+
{[%clk 00:06:02]} {[%emt 00:01:42]} Ne6 {[%clk 00:09:27]} {[%emt 00:00:25]} 38.
Qe4 {[%clk 00:03:49]} {[%emt 00:02:43]} Rd8 {[%clk 00:08:08]} {[%emt 00:01:49]}
39. Qxc6 {[%clk 00:03:01]} {[%emt 00:01:18]} Nxc6 {[%clk 00:07:20]} {[%emt
00:01:18]} 40. Bc3 {[%clk 00:02:42]} {[%emt 00:00:49]} Nc7 {[%clk 00:05:50]}
{[%emt 00:01:59]} 41. Kf1 {[%clk 00:26:57]} {[%emt 00:06:15]} g5 {[%clk
00:31:25]} {[%emt 00:04:54]} 42. Bb2 {[%clk 00:20:03]} {[%emt 00:07:24]} a5
{[%clk 00:29:40]} {[%emt 00:02:15]} 43. bxa5 {[%clk 00:17:33]} {[%emt
00:03:01]} Ne6 {[%clk 00:25:06]} {[%emt 00:05:04]} 44. Rb1 {[%clk 00:16:29]}
{[%emt 00:01:34]} Nxc5 {[%clk 00:23:40]} {[%emt 00:01:55]} 45. Ke2 {[%clk
00:10:58]} {[%emt 00:06:01]} Ke6 {[%clk 00:15:40]} {[%emt 00:08:30]} 46. Bc3
{[%clk 00:08:12]} {[%emt 00:03:16]} Rd3 {[%clk 00:15:11]} {[%emt 00:00:59]} 47.
Bb4 {[%clk 00:07:10]} {[%emt 00:01:32]} Rb3 {[%clk 00:15:30]} {[%emt 00:00:11]}
48. Rc1 {[%clk 00:03:52]} {[%emt 00:03:49]} Nxb4 {[%clk 00:12:35]} {[%emt
00:03:25]} 49. axb4 {[%clk 00:04:05]} {[%emt 00:00:17]} Na6 {[%clk 00:13:01]}
{[%emt 00:00:05]} 50. Nd2 {[%clk 00:02:59]} {[%emt 00:01:36]} Rxb4 {[%clk
00:13:23]} {[%emt 00:00:07]} 51. f3 {[%clk 00:03:16]} {[%emt 00:00:12]} Rb2
{[%clk 00:12:26]} {[%emt 00:01:27]} 52. g4 {[%clk 00:01:49]} {[%emt 00:01:57]}
Nb4 {[%clk 00:12:35]} {[%emt 00:00:21]} 53. Ra1 {[%clk 00:01:36]} {[%emt
00:00:43]} Na6 {[%clk 00:11:44]} {[%emt 00:01:21]} 54. Ke3 {[%clk 00:01:46]}
{[%emt 00:00:20]} Nc5 {[%clk 00:12:03]} {[%emt 00:00:11]} 55. Ra3 {[%clk
00:01:28]} {[%emt 00:00:48]} Rb5 {[%clk 00:11:20]} {[%emt 00:01:14]} 56. Ra2
{[%clk 00:01:23]} {[%emt 00:00:35]} Na6 {[%clk 00:11:10]} {[%emt 00:00:41]} 57.
Ne4 {[%clk 00:01:13]} {[%emt 00:00:40]} Rb3+ {[%clk 00:09:37]} {[%emt
00:02:02]} 58. Ke2 {[%clk 00:00:57]} {[%emt 00:00:47]} Ke7 {[%clk 00:09:26]}
{[%emt 00:00:41]} 59. Rd2 {[%clk 00:00:45]} {[%emt 00:00:42]} Rb5 {[%clk
00:08:54]} {[%emt 00:01:02]} 60. Nd6 {[%clk 00:00:55]} {[%emt 00:00:20]} Rxa5
{[%clk 00:07:59]} {[%emt 00:01:26]} 61. Nxb7 {[%clk 00:01:22]} {[%emt
00:00:03]} Ra3 {[%clk 00:08:10]} {[%emt 00:00:18]} 62. Nd6 {[%clk 00:01:24]}
{[%emt 00:00:58]} Nc5 {[%clk 00:09:03]} {[%emt 00:00:07]} 63. Nf5+ {[%clk
00:01:51]} {[%emt 00:00:04]} Kf7 {[%clk 00:08:52]} {[%emt 00:00:41]} 64. Rd5
{[%clk 00:01:35]} {[%emt 00:00:46]} Ra2+ {[%clk 00:08:29]} {[%emt 00:00:53]} 65.
Ke1 {[%clk 00:01:18]} {[%emt 00:00:47]} Ra1+ {[%clk 00:07:20]} {[%emt
00:01:40]} 66. Ke2 {[%clk 00:01:08]} {[%emt 00:00:39]} Rc1 {[%clk 00:07:45]}
{[%emt 00:00:05]} 67. Kd2 {[%clk 00:00:58]} {[%emt 00:00:41]} Nb3+ {[%clk
00:08:09]} {[%emt 00:00:05]} 68. Ke2 {[%clk 00:01:13]} {[%emt 00:00:15]} Rc7
{[%clk 00:08:27]} {[%emt 00:00:12]} 69. Rd6 {[%clk 00:01:23]} {[%emt 00:00:21]}
Kg6 {[%clk 00:08:49]} {[%emt 00:00:09]} 70. Rd8 {[%clk 00:01:29]} {[%emt
00:00:23]} Rh7 {[%clk 00:07:46]} {[%emt 00:01:33]} 71. Rg8+ {[%clk 00:01:17]}
{[%emt 00:00:42]} Kf7 {[%clk 00:08:15]} 72. Rd8 {[%clk 00:01:38]} {[%emt
00:00:09]} Rh2+ {[%clk 00:08:22]} {[%emt 00:00:24]} 73. Ke1 {[%clk 00:01:25]}
{[%emt 00:00:43]} Nc5 {[%clk 00:07:49]} {[%emt 00:01:03]} 74. Rd5 {[%clk
00:01:51]} {[%emt 00:00:04]} Rc2 {[%clk 00:07:12]} {[%emt 00:01:07]} 75. Kd1
{[%clk 00:01:24]} {[%emt 00:00:56]} Rc3 {[%clk 00:06:57]} {[%emt 00:00:45]} 76.
Kd2 {[%clk 00:01:24]} {[%emt 00:00:31]} Rc4 {[%clk 00:06:36]} {[%emt 00:00:51]}
77. Rxe5 {[%clk 00:01:42]} {[%emt 00:00:11]} fxe5 {[%clk 00:04:28]} {[%emt
00:02:38]} 78. Nd6+ {[%clk 00:02:10]} {[%emt 00:00:03]} Ke6 {[%clk 00:04:54]}
{[%emt 00:00:05]} 79. Nxc4 {[%clk 00:02:38]} {[%emt 00:00:02]} e4 {[%clk
00:05:14]} {[%emt 00:00:10]} 80. fxe4 {[%clk 00:03:06]} {[%emt 00:00:02]} Nxe4+
{[%clk 00:05:40]} {[%emt 00:00:04]} 81. Ke3 {[%clk 00:03:33]} {[%emt 00:00:02]}
Nf6 {[%clk 00:06:03]} {[%emt 00:00:08]} 82. Kf3 {[%clk 00:04:01]} {[%emt
00:00:02]} Kf7 {[%clk 00:06:26]} 1/2-1/2